bitfinex/quotes_BTCUSD_20250719
["timestamp","ask_amount","ask_price","bid_price","bid_amount"]
[1752889253753,8.453e-05,118080.0,118070.0,1.2603047]
[1752889256847,8.453e-05,118080.0,118070.0,1.486258]
[1752889272226,8.453e-05,118080.0,118070.0,1.485258]
[1752889272466,8.453e-05,118080.0,118070.0,1.482258]
[1752889272688,8.453e-05,118080.0,118070.0,1.485258]
[1752889273105,0.00108453,118080.0,118070.0,1.490258]
[1752889274885,0.00108453,118080.0,118070.0,1.487258]
[1752889275336,0.00108453,118080.0,118070.0,1.489258]
[1752889275554,0.00108453,118080.0,118070.0,2.494818]
[1752889278346,0.00108453,118080.0,118070.0,1.489258]
[1752889278522,0.00108453,118080.0,118070.0,3.234886]
[1752889280068,0.00108453,118080.0,118070.0,3.222922]
[1752889281538,0.01449531,118090.0,118080.0,0.80777647]
[1752889281745,0.01449531,118090.0,118080.0,0.95997675]
[1752889281948,0.01449531,118090.0,118080.0,0.96294675]
[1752889282155,1e-08,118090.0,118080.0,4.11147525]
[1752889282581,0.16723185,118130.0,118120.0,0.64662296]
[1752889282768,0.16974101,118130.0,118120.0,0.71122296]
[1752889283215,0.16668101,118130.0,118120.0,0.79673324]
[1752889283366,0.13578101,118130.0,118120.0,1.02268654]
[1752889283573,0.03380916,118130.0,118120.0,1.02268654]
[1752889283777,0.03380916,118130.0,118120.0,0.79673324]
[1752889284225,0.01800916,118130.0,118120.0,0.79884324]
[1752889284426,0.01900916,118130.0,118120.0,0.79884324]
[1752889285041,0.01900916,118130.0,118120.0,0.73424324]
[1752889285334,0.01900916,118130.0,118120.0,0.79884324]
[1752889287187,0.01900916,118130.0,118120.0,0.82375558]
[1752889287599,0.01900916,118130.0,118120.0,0.82674558]
[1752889287990,0.00390916,118130.0,118120.0,0.82674558]
[1752889293200,0.00390916,118130.0,118120.0,1.05269888]
[1752889293400,0.00189916,118130.0,118120.0,0.82674558]
[1752889293770,0.00189916,118130.0,118120.0,1.05269888]
[1752889296227,0.00189916,118130.0,118120.0,1.10269888]
[1752889296789,0.00189916,118130.0,118120.0,1.13499888]
[1752889298346,0.00089916,118130.0,118120.0,1.14953973]
[1752889298725,0.00189916,118130.0,118120.0,1.14953973]
[1752889300594,0.00189916,118130.0,118120.0,1.48953973]
[1752889300816,0.00189916,118130.0,118120.0,1.14953973]
[1752889303276,0.00189916,118130.0,118120.0,1.48953973]
[1752889306294,0.00189916,118130.0,118120.0,0.81167983]
[1752889306515,0.00189916,118130.0,118120.0,1.48953973]
[1752889307208,0.00189916,118130.0,118120.0,1.03763313]
[1752889307423,0.00189916,118130.0,118120.0,1.48953973]
[1752889307639,0.00189916,118130.0,118120.0,0.74707983]
[1752889307831,0.00189916,118130.0,118120.0,1.48953973]
[1752889309119,0.00189916,118130.0,118120.0,1.45723973]
[1752889310673,0.03864916,118130.0,118120.0,0.73486664]
[1752889310896,0.03864916,118130.0,118120.0,1.18677324]
[1752889311104,0.03864916,118130.0,118120.0,1.12213324]
[1752889311303,0.03864916,118130.0,118120.0,1.18685324]
[1752889312870,0.0555785,118130.0,118120.0,1.18681324]
[1752889313134,0.06404346,118130.0,118120.0,0.22778522]
[1752889313376,0.05679681,118120.0,118110.0,0.41220733]
[1752889313634,0.0706127,118120.0,118110.0,0.48539394]
[1752889313865,0.06214681,118120.0,118110.0,0.48539394]
[1752889314091,0.06214674,118120.0,118110.0,0.48539394]
[1752889314314,0.05368099,118120.0,118110.0,0.48539394]
[1752889314543,0.05368085,118120.0,118110.0,0.42067394]
[1752889314771,0.07061206,118120.0,118110.0,0.48539394]
[1752889314989,0.06214638,118120.0,118110.0,0.48539394]
[1752889315415,0.07061198,118120.0,118110.0,0.48639394]
[1752889315657,0.07907773,118120.0,118110.0,0.26044064]
[1752889315870,0.07907773,118120.0,118110.0,0.48639394]
[1752889316086,0.07061198,118120.0,118110.0,0.48639394]
[1752889317239,0.07061198,118120.0,118110.0,0.48615977]
[1752889318001,0.06214638,118120.0,118110.0,0.48615977]
[1752889318508,0.06214638,118120.0,118110.0,0.26044064]
[1752889318709,0.06214638,118120.0,118110.0,0.48615977]
[1752889319248,0.07061198,118120.0,118110.0,0.48615977]
[1752889320331,0.0790778,118120.0,118110.0,0.48615977]
[1752889320745,0.07061198,118120.0,118110.0,0.48615977]
[1752889320966,0.05368085,118120.0,118110.0,0.48615977]
[1752889321415,0.0706122,118120.0,118110.0,0.48615977]
[1752889321626,0.06214645,118120.0,118110.0,0.48615977]
[1752889322226,0.07061213,118120.0,118110.0,0.48615977]
[1752889323055,0.06214645,118120.0,118110.0,0.48615977]
[1752889323295,0.0706122,118120.0,118110.0,0.48615977]
[1752889323480,0.06214645,118120.0,118110.0,0.48615977]
[1752889323890,0.0706122,118120.0,118110.0,0.48615977]
[1752889324095,0.07061213,118120.0,118110.0,0.48615977]
[1752889324301,0.07907795,118120.0,118110.0,0.48615977]
[1752889325342,0.07061213,118120.0,118110.0,0.48615977]
[1752889325509,0.07907795,118120.0,118110.0,0.48615977]
[1752889325680,0.07907788,118120.0,118110.0,0.48615977]
[1752889326185,0.07061213,118120.0,118110.0,0.48615977]
[1752889326591,0.06214645,118120.0,118110.0,0.48615977]
[1752889327650,0.05368085,118120.0,118110.0,0.48615977]
[1752889327850,0.05368092,118120.0,118110.0,0.48615977]
[1752889328927,0.05368099,118120.0,118110.0,0.26044064]
[1752889329159,0.04521532,118120.0,118110.0,0.48615977]
[1752889329362,0.04368078,118120.0,118110.0,0.48615977]
[1752889330003,0.05214638,118120.0,118110.0,0.48615977]
[1752889330236,0.06061213,118120.0,118110.0,0.48615977]
[1752889330655,0.05214638,118120.0,118110.0,0.48615977]
[1752889332255,0.04368078,118120.0,118110.0,0.48615977]
[1752889332477,0.04044078,118120.0,118110.0,0.48615977]
[1752889333217,0.03504078,118120.0,118110.0,0.48615977]
[1752889333398,0.02657532,118120.0,118110.0,0.48615977]
[1752889333601,0.03504078,118120.0,118110.0,0.48615977]
[1752889333802,0.03504078,118120.0,118110.0,0.26044064]
[1752889334002,0.04350631,118120.0,118110.0,0.48615977]
[1752889334200,0.02657532,118120.0,118110.0,0.48615977]
[1752889334405,0.00211,118120.0,118110.0,0.7169389]
[1752889336387,0.01057539,118120.0,118110.0,0.7169389]
[1752889336826,0.01057532,118120.0,118110.0,0.7169389]
[1752889339118,0.01057532,118120.0,118110.0,0.71689232]
[1752889339507,0.01904078,118120.0,118110.0,0.71689232]
[1752889340484,0.02750631,118120.0,118110.0,0.71689232]
[1752889340758,0.03597199,118120.0,118110.0,0.71689232]
[1752889341183,0.03597199,118120.0,118110.0,0.49119648]
[1752889341609,0.03597191,118120.0,118110.0,0.49119648]
[1752889342578,0.02750631,118120.0,118110.0,0.49119648]
[1752889343279,0.01057532,118120.0,118110.0,0.49119648]
[1752889343965,0.01904071,118120.0,118110.0,0.49119648]
[1752889344198,0.02750617,118120.0,118110.0,0.49119648]
[1752889344864,0.01904071,118120.0,118110.0,0.49119648]
[1752889345523,0.01057532,118120.0,118110.0,0.49119648]
[1752889346203,0.01057532,118120.0,118110.0,0.71689232]
[1752889346481,0.01904078,118120.0,118110.0,0.71713232]
[1752889347116,0.01904078,118120.0,118110.0,0.26574064]
[1752889347334,0.01904078,118120.0,118110.0,0.49143648]
[1752889347928,0.01904078,118120.0,118110.0,0.26574064]
[1752889348149,0.01904078,118120.0,118110.0,0.71713232]
[1752889348698,0.02750638,118120.0,118110.0,0.49143648]
[1752889349289,0.02750638,118120.0,118110.0,0.71713232]
[1752889349696,0.01904078,118120.0,118110.0,0.49143648]
[1752889349898,0.01904078,118120.0,118110.0,0.26574064]
[1752889350104,0.01904078,118120.0,118110.0,0.49143648]
[1752889350315,0.02750631,118120.0,118110.0,0.49143648]
[1752889351121,0.02750631,118120.0,118110.0,0.42647648]
[1752889351322,0.02750631,118120.0,118110.0,0.49151648]
[1752889351475,0.02750631,118120.0,118110.0,0.26582064]
[1752889351822,0.02750631,118120.0,118110.0,0.49151648]
[1752889352453,0.01057532,118120.0,118110.0,0.49151648]
[1752889352673,0.01904078,118120.0,118110.0,0.49151648]
[1752889353819,0.01057532,118120.0,118110.0,0.49151648]
[1752889354115,0.01904078,118120.0,118110.0,0.49151648]
[1752889354319,0.01057532,118120.0,118110.0,0.49151648]
[1752889354529,0.01693071,118120.0,118110.0,0.50651648]
[1752889355368,0.00846532,118120.0,118110.0,0.50651648]
[1752889355808,0.00846532,118120.0,118110.0,0.73221232]
[1752889356444,0.01693078,118120.0,118110.0,0.73221232]
[1752889357274,0.01693078,118120.0,118110.0,0.50651648]
[1752889357514,0.01898078,118120.0,118110.0,0.49151648]
[1752889358017,0.01051532,118120.0,118110.0,0.49151648]
[1752889358224,0.01898078,118120.0,118110.0,0.49151648]
[1752889358434,0.01898078,118120.0,118110.0,0.26582064]
[1752889358637,0.01898078,118120.0,118110.0,0.49151648]
[1752889359257,0.02744631,118120.0,118110.0,0.49151648]
[1752889360388,0.22949706,118120.0,118110.0,0.40448391]
[1752889360662,0.23085628,118120.0,118110.0,0.48641676]
[1752889361117,0.23085628,118120.0,118110.0,0.49488308]
[1752889361356,0.23268813,118120.0,118110.0,0.43834933]
[1752889361584,0.0601788,118120.0,118110.0,0.50234933]
[1752889362029,0.0601788,118120.0,118100.0,0.19581155]
[1752889362030,0.01693257,118110.0,118100.0,0.19581155]
[1752889362256,0.22563285,118110.0,118100.0,0.46006035]
[1752889362479,0.22240667,118110.0,118100.0,0.29920324]
[1752889362699,0.22240667,118110.0,118100.0,0.30767056]
[1752889362921,0.22240667,118110.0,118100.0,0.23416324]
[1752889363132,0.22240667,118110.0,118100.0,0.30771056]
[1752889363342,0.23070974,118110.0,118100.0,0.30871056]
[1752889363773,0.23070974,118110.0,118100.0,0.48652575]
[1752889363978,0.23070974,118110.0,118100.0,0.49499286]
[1752889364160,0.23070974,118110.0,118100.0,0.48652575]
[1752889364401,0.23070974,118110.0,118100.0,0.48552575]
[1752889364582,0.23070974,118110.0,118100.0,0.18628273]
[1752889364882,0.22224335,118110.0,118100.0,0.46859125]
[1752889365093,0.22224335,118110.0,118100.0,0.47705857]
[1752889365616,0.22324335,118110.0,118100.0,0.47705857]
[1752889366239,0.22324335,118110.0,118100.0,0.48552582]
[1752889366495,0.22324335,118110.0,118100.0,0.493993]
[1752889367499,0.22324335,118110.0,118100.0,0.48552582]
[1752889369704,0.21477674,118110.0,118100.0,0.29077584]
[1752889370567,0.21477674,118110.0,118100.0,0.46859125]
[1752889370984,0.18068674,118110.0,118100.0,0.47902857]
[1752889371188,0.18068674,118110.0,118100.0,0.49051568]
[1752889371189,0.18915335,118110.0,118100.0,0.49051568]
[1752889371402,0.18915335,118110.0,118100.0,0.71621152]
[1752889371827,0.18915335,118110.0,118100.0,0.49051568]
[1752889372238,0.18915335,118110.0,118100.0,0.49898272]
[1752889374303,0.18915335,118110.0,118100.0,0.49051568]
[1752889374710,0.18915335,118110.0,118100.0,0.25635273]
[1752889374921,0.18915335,118110.0,118100.0,0.48204857]
[1752889375130,0.18915335,118110.0,118100.0,0.49051582]
[1752889376202,0.18915335,118110.0,118100.0,0.48749582]
[1752889376402,0.18068674,118110.0,118100.0,0.47902857]
[1752889377142,0.18068674,118110.0,118100.0,0.30121324]
[1752889377360,0.17238367,118110.0,118100.0,0.29077584]
[1752889377752,0.17238367,118110.0,118100.0,0.29924324]
[1752889377949,0.17238367,118110.0,118100.0,0.46859125]
[1752889378131,0.17238367,118110.0,118100.0,0.4770585]
[1752889380013,0.17238367,118110.0,118100.0,0.24289541]
[1752889380239,0.17238367,118110.0,118100.0,0.46859125]
[1752889380451,0.17238367,118110.0,118100.0,0.47705857]
[1752889380591,0.17238367,118110.0,118100.0,0.48552582]
[1752889380950,0.17238367,118110.0,118100.0,0.48747582]
[1752889382215,0.18069849,118110.0,118100.0,0.48747582]
[1752889383514,0.18916517,118110.0,118100.0,0.50747011]
[1752889383700,0.19763163,118110.0,118100.0,0.50746975]
[1752889384254,0.18763163,118110.0,118100.0,0.73316559]
[1752889384448,0.18763163,118110.0,118100.0,0.73316524]
[1752889384995,0.01983107,118110.0,118100.0,0.73316524]
[1752889385176,0.0452301,118110.0,118100.0,0.73316488]
[1752889385410,0.0452301,118110.0,118100.0,0.74856488]
[1752889385563,0.05369678,118110.0,118100.0,0.74009799]
[1752889387255,0.04523075,118110.0,118100.0,0.74009799]
[1752889387963,0.03471407,118110.0,118100.0,0.74856488]
[1752889388121,0.034714,118110.0,118100.0,0.74856488]
[1752889388325,0.02624746,118110.0,118100.0,0.74856488]
[1752889388685,0.03471356,118110.0,118100.0,0.74856488]
[1752889389471,0.0431801,118110.0,118100.0,0.74856488]
[1752889392107,0.21251377,118110.0,118100.0,0.74009799]
[1752889392291,0.21251377,118110.0,118100.0,0.67501799]
[1752889392504,0.21251377,118110.0,118100.0,0.73993799]
[1752889392999,0.05164671,118110.0,118100.0,0.74840488]
[1752889393229,0.03471356,118110.0,118100.0,0.2970132]
[1752889393453,0.0431801,118110.0,118100.0,0.74840488]
[1752889393682,0.05164671,118110.0,118100.0,0.74840488]
[1752889394161,0.0431801,118110.0,118100.0,0.74840488]
[1752889396000,0.05164671,118110.0,118100.0,0.74840488]
[1752889396219,0.05164736,118110.0,118100.0,0.74840488]
[1752889397197,0.04318068,118110.0,118100.0,0.74840488]
[1752889398498,0.03471407,118110.0,118100.0,0.74840488]
[1752889399699,0.03471407,118110.0,118100.0,0.2970132]
[1752889399912,0.02624753,118110.0,118100.0,0.74840488]
[1752889400113,0.03471349,118110.0,118100.0,0.74840488]
[1752889402467,0.04318003,118110.0,118100.0,0.74840488]
[1752889404713,0.03471349,118110.0,118100.0,0.74840488]
[1752889405203,0.04318003,118110.0,118100.0,0.2970132]
[1752889405648,0.05164664,118110.0,118100.0,0.74840488]
[1752889407167,0.03471349,118110.0,118100.0,0.2970132]
[1752889407368,0.04318003,118110.0,118100.0,0.74840488]
[1752889408531,0.20404767,118110.0,118100.0,0.72300441]
[1752889408764,0.20608767,118110.0,118100.0,0.72453884]
[1752889409149,0.20608767,118110.0,118100.0,0.498843]
[1752889409848,0.20608767,118110.0,118100.0,0.72453884]
[1752889410373,0.20608767,118110.0,118100.0,0.49037582]
[1752889410818,0.19762142,118110.0,118100.0,0.47884857]
[1752889411213,0.19762142,118110.0,118100.0,0.25315273]
[1752889411498,0.19762142,118110.0,118100.0,0.47884857]
[1752889412460,0.19762142,118110.0,118100.0,0.23621801]
[1752889412665,0.19762142,118110.0,118100.0,0.46191385]
[1752889413484,0.19762142,118110.0,118100.0,0.4734911]
[1752889413688,0.19762142,118110.0,118100.0,0.48195828]
[1752889413892,0.19762142,118110.0,118100.0,0.49042539]
[1752889414510,0.19762142,118110.0,118100.0,0.26472955]
[1752889414745,0.19762142,118110.0,118100.0,0.71612123]
[1752889416071,0.19762142,118110.0,118100.0,0.70765412]
[1752889416278,0.18915503,118110.0,118100.0,0.70765412]
[1752889416704,0.18068849,118110.0,118090.0,0.21214032]
[1752889416884,0.19688849,118110.0,118100.0,0.29057584]
[1752889417526,0.24074129,118110.0,118100.0,0.06488]
[1752889417743,0.19688849,118110.0,118100.0,0.29057584]
[1752889418878,0.18068849,118110.0,118100.0,0.29057584]
[1752889419093,0.18068849,118110.0,118090.0,0.22907561]
[1752889419094,0.16934801,118100.0,118090.0,0.001]
[1752889419319,0.17138801,118100.0,118090.0,0.001]
[1752889419532,0.20509801,118100.0,118090.0,0.29057584]
[1752889419739,0.26604224,118100.0,118090.0,0.29057584]
[1752889420707,0.20509801,118100.0,118090.0,0.29057584]
[1752889421124,0.00846869,118080.0,118070.0,0.0153]
[1752889421317,0.18632991,118070.0,118060.0,0.54815121]
[1752889421478,0.18632991,118070.0,118060.0,0.92631733]
[1752889421679,0.19484114,118070.0,118060.0,0.65446168]
[1752889421902,0.18637174,118070.0,118060.0,0.59134148]
[1752889422124,0.18637174,118070.0,118060.0,0.41346584]
[1752889422316,0.18637174,118070.0,118060.0,0.42202063]
[1752889422520,0.18637174,118070.0,118060.0,0.43049082]
[1752889422718,0.18637174,118070.0,118060.0,0.82859204]
[1752889423016,0.18637174,118070.0,118060.0,0.83706216]
[1752889423876,0.18637174,118070.0,118060.0,0.61136632]
[1752889424046,0.18637174,118070.0,118060.0,0.43349082]
[1752889424806,0.194841,118070.0,118060.0,0.62830606]
[1752889425430,0.02544997,118070.0,118060.0,0.56338606]
[1752889425579,0.02544997,118070.0,118060.0,0.62830556]
[1752889425784,0.03391893,118070.0,118060.0,0.7890814]
[1752889425989,0.03391893,118070.0,118060.0,0.8043814]
[1752889426254,0.03391893,118070.0,118060.0,0.8693414]
[1752889426416,0.03391893,118070.0,118060.0,0.8043814]
[1752889426615,0.03391893,118070.0,118060.0,0.8693414]
[1752889427443,0.04238841,118070.0,118060.0,0.8693414]
[1752889428756,0.04238841,118070.0,118060.0,0.86087164]
[1752889429142,0.04238841,118070.0,118060.0,0.40947996]
[1752889429357,0.04238841,118070.0,118060.0,0.86087164]
[1752889431077,0.04238841,118070.0,118060.0,0.84557164]
[1752889432049,0.05085796,118070.0,118060.0,0.84557164]
[1752889433323,0.05085796,118070.0,118060.0,0.8540414]
[1752889434674,0.05085796,118070.0,118060.0,0.39417996]
[1752889434875,0.04238892,118070.0,118060.0,0.84557164]
[1752889435930,0.04238892,118070.0,118060.0,0.8540414]
[1752889436237,0.03391937,118070.0,118060.0,0.8540414]
[1752889437202,0.02544989,118070.0,118060.0,0.8540414]
[1752889437418,0.02544989,118070.0,118060.0,0.8696414]
[1752889439199,0.02544989,118070.0,118060.0,0.8796414]
[1752889440535,0.02544953,118070.0,118060.0,0.8796414]
[1752889440754,0.03391893,118070.0,118060.0,0.8796414]
[1752889440962,0.03391893,118070.0,118060.0,0.42824972]
[1752889441174,0.03391893,118070.0,118060.0,0.8796414]
[1752889441606,0.00846904,118070.0,118060.0,0.8796414]
[1752889441850,0.0169383,118070.0,118060.0,0.8796414]
[1752889442979,0.0254077,118070.0,118060.0,0.7780414]
[1752889443205,0.0169383,118070.0,118060.0,0.7780414]
[1752889444417,0.00846904,118070.0,118060.0,0.7780414]
[1752889444834,0.01693823,118070.0,118060.0,0.7780414]
[1752889445039,0.00846904,118070.0,118060.0,0.7780414]
[1752889445667,0.02540749,118070.0,118060.0,0.7780414]
[1752889446453,0.02540735,118070.0,118060.0,0.7780414]
[1752889446869,0.03387668,118070.0,118060.0,0.7780414]
[1752889447079,0.02540735,118070.0,118060.0,0.7780414]
[1752889447283,0.01693816,118070.0,118060.0,0.7780414]
[1752889447705,0.00846904,118070.0,118060.0,0.7780414]
[1752889447979,0.025428,118090.0,118080.0,0.16937669]
[1752889448224,0.0338713,118090.0,118080.0,0.73234407]
[1752889448425,0.05080513,118100.0,118090.0,0.19476575]
[1752889448639,0.03384553,118100.0,118090.0,0.50343159]
[1752889448812,0.03384553,118100.0,118090.0,0.28944336]
[1752889449041,0.03384553,118100.0,118090.0,0.49820399]
[1752889449167,0.03384553,118100.0,118090.0,0.50667174]
[1752889449374,0.03384553,118100.0,118090.0,0.49820399]
[1752889449613,0.03384553,118100.0,118090.0,0.26404032]
[1752889449856,0.19472643,118100.0,118090.0,0.25557235]
[1752889450151,0.19672643,118100.0,118090.0,0.48126819]
[1752889450493,0.19672643,118100.0,118090.0,0.48973623]
[1752889450882,0.19672643,118100.0,118090.0,0.4982042]
[1752889451183,0.19672643,118100.0,118090.0,0.5066721]
[1752889453304,0.19672643,118100.0,118090.0,0.28097626]
[1752889453521,0.19672643,118100.0,118090.0,0.5066721]
[1752889453722,0.19881643,118100.0,118090.0,0.06707]
[1752889453867,0.19034911,118100.0,118090.0,0.29073584]
[1752889454080,0.20684911,118100.0,118090.0,0.29073584]
[1752889454525,0.20784911,118100.0,118090.0,0.29073584]
[1752889455004,0.20784911,118100.0,118090.0,0.29086955]
[1752889455451,0.19134911,118100.0,118090.0,0.29086955]
[1752889456083,0.17783046,118090.0,118070.0,0.42755888]
[1752889456301,0.01693716,118080.0,118070.0,0.44733733]
[1752889456511,0.01693716,118080.0,118070.0,0.51440733]
[1752889457162,0.02540577,118080.0,118070.0,0.51440733]
[1752889457840,0.02540534,118080.0,118070.0,0.51440733]
[1752889458774,0.03387403,118080.0,118070.0,0.51440733]
[1752889458961,0.01693673,118080.0,118070.0,0.51440733]
[1752889459299,0.0254052,118080.0,118070.0,0.51540733]
[1752889459510,0.01693673,118080.0,118070.0,0.51540733]
[1752889459738,0.20279836,118090.0,118080.0,0.18631385]
[1752889459952,0.01902601,118090.0,118080.0,0.4226418]
[1752889460149,0.01902601,118090.0,118080.0,0.43435013]
[1752889460374,0.01902558,118090.0,118080.0,0.43435013]
[1752889460585,0.02749355,118090.0,118080.0,0.43435013]
[1752889460802,0.02849355,118090.0,118080.0,0.43435013]
[1752889461434,0.02949355,118090.0,118080.0,0.43435013]
[1752889461822,0.02102515,118090.0,118080.0,0.43435013]
[1752889462048,0.01893515,118090.0,118080.0,0.44995013]
[1752889462533,0.01893515,118090.0,118080.0,0.46605013]
[1752889462748,0.01046747,118090.0,118080.0,0.69187968]
[1752889462968,0.01893508,118090.0,118080.0,0.69187968]
[1752889463188,0.01046747,118090.0,118080.0,0.69187968]
[1752889463622,0.01893508,118090.0,118080.0,0.69187968]
[1752889464042,0.002,118090.0,118080.0,0.77738996]
[1752889465954,0.002,118090.0,118080.0,0.84234996]
[1752889466183,0.002,118090.0,118080.0,0.39069086]
[1752889466397,0.002,118090.0,118080.0,0.84234996]
[1752889474318,0.002,118090.0,118080.0,0.39069086]
[1752889474813,0.002,118090.0,118080.0,0.84234996]
[1752889475489,0.002,118090.0,118080.0,0.39069086]
[1752889475724,0.002,118090.0,118080.0,0.84234996]
[1752889484918,0.002,118090.0,118080.0,0.84227668]
[1752889485365,0.002,118090.0,118080.0,0.8508301]
[1752889486906,0.002,118090.0,118080.0,0.39924428]
[1752889487125,0.002,118090.0,118080.0,0.84227668]
[1752889490952,0.002,118090.0,118080.0,0.39069086]
[1752889491163,0.002,118090.0,118080.0,0.84227668]
[1752889502526,0.002,118090.0,118080.0,0.80733668]
[1752889502527,0.02028,118090.0,118080.0,0.80733668]
[1752889502736,0.03668,118090.0,118080.0,0.74034668]
[1752889502906,0.03214342,118090.0,118080.0,0.24260538]
[1752889503144,0.0490795,118090.0,118080.0,0.48533566]
[1752889503346,0.20177626,118090.0,118080.0,0.29055291]
[1752889503552,0.22590843,118090.0,118080.0,0.29055291]
[1752889503673,0.22590843,118090.0,118080.0,0.29902174]
[1752889504505,0.22590843,118090.0,118080.0,0.29055291]
[1752889504787,0.22590843,118090.0,118080.0,0.06476]
[1752889504995,0.22590843,118090.0,118080.0,0.29055291]
[1752889505443,0.22590843,118090.0,118080.0,0.29902174]
[1752889505880,0.17784538,118080.0,118070.0,0.17786036]
[1752889506097,0.22099414,118080.0,118070.0,0.46841342]
[1752889506253,0.22392414,118080.0,118070.0,0.46841342]
[1752889506464,0.21545545,118080.0,118070.0,0.24262051]
[1752889506685,0.21545545,118080.0,118070.0,0.46841342]
[1752889506904,0.20698669,118080.0,118070.0,0.29055291]
[1752889507238,0.20698669,118080.0,118070.0,0.29155291]
[1752889509360,0.20698669,118080.0,118070.0,0.06576]
[1752889511353,0.20698669,118080.0,118070.0,0.30002246]
[1752889513811,0.20698669,118080.0,118070.0,0.46941349]
[1752889514034,0.19612552,118080.0,118070.0,0.48635208]
[1752889514269,0.20459413,118080.0,118070.0,0.49482127]
[1752889514500,0.19612552,118080.0,118070.0,0.47788282]
[1752889515498,0.19612552,118080.0,118070.0,0.48635208]
[1752889516090,0.19612552,118080.0,118070.0,0.47788282]
[1752889516325,0.18765669,118080.0,118070.0,0.46941349]
[1752889516503,0.18765669,118080.0,118070.0,0.47788297]
[1752889516650,0.18765669,118080.0,118070.0,0.48635237]
[1752889518335,0.25291827,118080.0,118070.0,0.47788297]
[1752889518542,0.26871827,118080.0,118070.0,0.25209006]
[1752889518761,0.26871827,118080.0,118070.0,0.47788297]
[1752889518970,0.26871827,118080.0,118070.0,0.29155291]
[1752889519602,0.20345669,118080.0,118070.0,0.29155291]
[1752889519817,0.20638669,118080.0,118070.0,0.06576]
[1752889520048,0.20638669,118080.0,118070.0,0.29155291]
[1752889522971,0.20738669,118080.0,118070.0,0.29055291]
[1752889523186,0.20838669,118080.0,118070.0,0.29055291]
[1752889523418,0.20838669,118080.0,118070.0,0.06476]
[1752889523610,0.20838669,118080.0,118070.0,0.29055291]
[1752889524970,0.20838669,118080.0,118070.0,0.06476]
[1752889525185,0.20838669,118080.0,118070.0,0.29055291]
[1752889525831,0.18633006,118070.0,118060.0,0.22587744]
[1752889526067,0.18842006,118070.0,118060.0,0.07331479]
[1752889526286,0.18842006,118070.0,118060.0,0.29266744]
[1752889526528,0.17995058,118070.0,118060.0,0.52143035]
[1752889527219,0.17995058,118070.0,118060.0,0.52243035]
[1752889527448,0.17995058,118070.0,118060.0,0.53090061]
[1752889527932,0.17995058,118070.0,118060.0,0.29663744]
[1752889528276,0.17995058,118070.0,118060.0,0.70877618]
[1752889529015,0.17995058,118070.0,118060.0,0.45767035]
[1752889529235,0.17995058,118070.0,118060.0,0.29663744]
[1752889529460,0.17995058,118070.0,118060.0,0.23187744]
[1752889529682,0.17995058,118070.0,118060.0,0.29663744]
[1752889529927,0.17995058,118070.0,118060.0,0.23187744]
[1752889530124,0.17995058,118070.0,118060.0,0.29663744]
[1752889530334,0.17995058,118070.0,118060.0,0.47451308]
[1752889530554,0.17995058,118070.0,118060.0,0.48298327]
[1752889530780,0.17995058,118070.0,118060.0,0.41822327]
[1752889531139,0.17995058,118070.0,118060.0,0.48298327]
[1752889531364,0.17995058,118070.0,118060.0,0.49992344]
[1752889531576,0.17995058,118070.0,118060.0,0.73422633]
[1752889532000,0.17995058,118070.0,118060.0,0.49996344]
[1752889532219,0.17995058,118070.0,118060.0,0.43516344]
[1752889532405,0.17995058,118070.0,118060.0,0.25723036]
[1752889532668,0.17995058,118070.0,118060.0,0.49149339]
[1752889533544,0.19904348,118070.0,118060.0,0.25723036]
[1752889533780,0.19904348,118070.0,118060.0,0.48852339]
[1752889534000,0.20751281,118070.0,118060.0,0.48852339]
[1752889534226,0.20751281,118070.0,118060.0,0.50546342]
[1752889534467,0.18841991,118070.0,118060.0,0.49996344]
[1752889534938,0.18841991,118070.0,118060.0,0.50843342]
[1752889535557,0.18841991,118070.0,118060.0,0.50843299]
[1752889536003,0.18841991,118070.0,118060.0,0.27417025]
[1752889536210,0.18841991,118070.0,118060.0,0.49996316]
[1752889537116,0.18841991,118070.0,118060.0,0.50843307]
[1752889537345,0.45651548,118070.0,118060.0,0.00108453]
[1752889537602,0.48681548,118070.0,118060.0,0.06592453]
[1752889538045,0.26102257,118070.0,118060.0,0.06592453]
[1752889538983,0.48781548,118070.0,118060.0,8.453e-05]
[1752889539200,0.57332576,118070.0,118060.0,0.06488453]
[1752889539426,0.57432576,118070.0,118060.0,0.06488453]
[1752889541094,0.57432576,118070.0,118060.0,8.453e-05]
[1752889543185,0.91432576,118070.0,118060.0,8.453e-05]
[1752889545008,0.68853285,118070.0,118060.0,8.453e-05]
[1752889545235,0.91432576,118070.0,118060.0,8.453e-05]
[1752889556344,0.97916576,118070.0,118060.0,8.453e-05]
[1752889558233,1.20495867,118070.0,118060.0,8.453e-05]
[1752889559166,1.20395867,118070.0,118060.0,8.453e-05]
[1752889559398,1.20795867,118070.0,118060.0,8.453e-05]
[1752889559792,1.23339567,118070.0,118060.0,8.453e-05]
[1752889560280,0.78180985,118070.0,118060.0,8.453e-05]
[1752889560514,1.23339567,118070.0,118060.0,8.453e-05]
[1752889561119,1.22939567,118070.0,118060.0,8.453e-05]
[1752889561534,1.23439567,118070.0,118060.0,8.453e-05]
[1752889561934,1.23339567,118070.0,118060.0,8.453e-05]
[1752889562360,1.23439567,118070.0,118060.0,8.453e-05]
[1752889562991,1.23339567,118070.0,118060.0,8.453e-05]
[1752889563409,1.23639567,118070.0,118060.0,8.453e-05]
[1752889570431,0.71996985,118070.0,118060.0,8.453e-05]
[1752889570674,1.23651567,118070.0,118060.0,8.453e-05]
[1752889578953,0.78492985,118070.0,118060.0,8.453e-05]
[1752889579194,1.23651567,118070.0,118060.0,8.453e-05]
[1752889580247,0.78492985,118070.0,118060.0,8.453e-05]
[1752889580464,1.23651567,118070.0,118060.0,8.453e-05]
[1752889581129,1.22131567,118070.0,118060.0,8.453e-05]
[1752889582049,0.99552276,118070.0,118060.0,8.453e-05]
[1752889583113,0.76972985,118070.0,118060.0,8.453e-05]
[1752889583352,0.99552276,118070.0,118060.0,8.453e-05]
[1752889584946,0.98042276,118070.0,118060.0,8.453e-05]
[1752889585570,1.14213067,118070.0,118060.0,8.453e-05]
[1752889585811,0.68966985,118070.0,118060.0,8.453e-05]
[1752889586043,0.25924991,118070.0,118060.0,0.29651841]
[1752889586253,0.02493802,118070.0,118060.0,0.56758049]
[1752889586470,0.04187676,118070.0,118060.0,0.56758049]
[1752889587601,0.04187676,118070.0,118060.0,0.55911073]
[1752889587821,0.19779889,118070.0,118060.0,0.55911073]
[1752889588009,0.19479889,118070.0,118060.0,0.55911073]
[1752889588253,0.18932977,118070.0,118060.0,0.55911087]
[1752889588489,0.18286051,118070.0,118060.0,0.55911087]
[1752889588713,0.17439103,118070.0,118060.0,0.55911087]
[1752889588935,0.17439103,118070.0,118060.0,0.56758092]
[1752889589151,0.17439103,118070.0,118060.0,0.5760509]
[1752889589581,0.17439103,118070.0,118060.0,0.50827439]
[1752889589793,0.17439103,118070.0,118060.0,0.49980441]
[1752889591615,0.17439103,118070.0,118060.0,0.49133436]
[1752889592107,0.17439103,118070.0,118060.0,0.23300048]
[1752889592321,0.17439103,118070.0,118060.0,0.49133436]